Workbook

Sheet 4
A1: Załącznik Nr 10 do uchwały Nr XIII/101/11 Rady Miejskiej Radzynia Chełmińskiego z dnia 20 grudnia 2011r
A5: Plan wydatków na programy i projekty realizowane ze środków pochodzących z budżetu Unii Europejskiej na rok 2012
A8: Lp. | B8: Projekt | C8: Kategoria interwencji funduszy strukturalnych | D8: Klasyfikacja (dział, rozdział, paragraf) | E8: Wydatki w okresie realizacji Projektu (całkowita wartość Projektu) (6+7) | F8: w tym: | H8: Planowane wydatki
F9: Środki z budżetu krajowego | G9: Środki z budżetu UE | H9: 2011 r.
H10: Wydatki razem (9+13) | I10: z tego:
I11: Środki z budżetu krajowego | M11: Środki z budżetu UE
I12: Wydatki razem (10+11+12) | J12: z tego, źródła finansowania: | M12: Wydatki razem (14+15+16+17) | N12: z tego, źródła finansowania:
J13: pożyczki i kredyty | K13: obligacje | L13: pozostałe | N13: pożyczki na prefinansowanie z budżetu państwa | O13: pożyczki i kredyty | P13: obligacje | Q13: pozostałe
A14: 1 | B14: 2 | C14: 3 | D14: 4 | E14: 5 | F14: 6 | G14: 7 | H14: 8 | I14: 9 | J14: 10 | K14: 11 | L14: 12 | M14: 13 | N14: 14 | O14: 15 | P14: 16 | Q14: 17
A16: 1 | B16: Wydatki inwestycyjne razem: | C16: x | E16: =SUM(E22) -> 90000 | F16: 40000 | G16: 50000 | H16: 90000 | I16: 40000 | J16: 0 | K16: 0 | L16: 40000 | M16: 50000 | N16: 50000 | O16: 0 | P16: 0 | Q16: 0
A17: 1.1 | B17: Program: | C17: Program Rozwoju Obszarów Wiejskich na lata 2007-2013
B18: Priorytet: | C18: Oś. 3 Jakość życia na obszarach wiejskich i różnicowanie gospodarki wiejskiej
B19: Działanie: | C19: Działanie 313,322,323 "Odnowa i rozwój wsi"
B20: Nazwa projektu: | C20: Budowa placu zabaw dla dzieci "Dziecięca kraina zabaw" w Dębieńcu
B22: Razem wydatki: | C22: Europejski Fundusz Rolny na rzecz Rozwoju Obszarów Wiejskich (EFRROW) | E22: =SUM(E23:E24) -> 90000 | F22: =SUM(F23:F24) -> 40000 | G22: 50000 | H22: 90000 | I22: 40000 | J22: 0 | K22: 0 | L22: 40000 | M22: 50000 | N22: 50000 | O22: 0 | P22: 0 | Q22: 0
B23: z tego: 2012 r. | D23: 010/01095/6058 | E23: 50000 | F23: - | G23: 50000 | H23: 50000 | I23: - | J23: - | K23: - | L23: - | M23: 50000 | N23: 50000 | O23: - | P23: - | Q23: -
D24: 010/01095/6059 | E24: 40000 | F24: 40000 | G24: - | H24: 40000 | I24: 40000 | J24: - | K24: - | L24: 40000 | M24: - | N24: - | O24: - | P24: - | Q24: -
A25: 2 | B25: Wydatki inwestycyjne razem: | C25: x | E25: =SUM(E31) -> 1500000 | F25: 875000 | G25: 625000 | H25: 1500000 | I25: 875000 | J25: 875000 | K25: 0 | L25: 0 | M25: 625000 | N25: 625000 | O25: 0 | P25: 0 | Q25: 0
A26: 2.1 | B26: Program: | C26: Program Rozwoju Obszarów Wiejskich na lata 2007-2013
B27: Priorytet: | C27: Oś. 3 Jakość życia na obszarach wiejskich i różnicowanie gospodarki wiejskiej
B28: Działanie: | C28: Działanie 321 Podstawowe usługi dla gospodarki i ludności wiejskiej
B29: Nazwa projektu: | C29: Budowa przydomowych oczyszczalni ścieków na terenie gminy Radzyń Chełmiński oraz wymiana i rozbudowa sieci wodociągowej na terenie miasta i gminy Radzyń Chełmiński - Zadanie II
B31: Razem wydatki: | C31: Europejski Fundusz Rolny na rzecz Rozwoju Obszarów Wiejskich (EFRROW) | E31: =SUM(E32:E33) -> 1500000 | F31: =SUM(F32:F33) -> 875000 | G31: 625000 | H31: 1500000 | I31: 875000 | J31: 875000 | K31: 0 | L31: 0 | M31: 625000 | N31: 625000 | O31: 0 | P31: 0 | Q31: 0
B32: z tego: 2012 r. | D32: 010/01010/6058 | E32: 625000 | F32: - | G32: 625000 | H32: 625000 | I32: - | J32: - | K32: - | L32: - | M32: 625000 | N32: 625000 | O32: - | P32: - | Q32: -
D33: 010/01010/6059 | E33: 875000 | F33: 875000 | G33: - | H33: 875000 | I33: 875000 | J33: 875000 | K33: - | L33: - | M33: - | N33: - | O33: - | P33: - | Q33: -
Q38: str. 2
A43: 1 | B43: 2 | C43: 3 | D43: 4 | E43: 5 | F43: 6 | G43: 7 | H43: 8 | I43: 9 | J43: 10 | K43: 11 | L43: 12 | M43: 13 | N43: 14 | O43: 15 | P43: 16 | Q43: 17
A44: 3. | B44: Wydatki inwestycyjne razem: | C44: x | E44: =SUM(E50) -> 107000 | F44: 43000 | G44: 64000 | H44: 107000 | I44: 43000 | J44: 43000 | K44: 0 | L44: 0 | M44: 64000 | N44: 64000 | O44: 0 | P44: 0 | Q44: 0
A45: 3.1 | B45: Program: | C45: Program Rozwoju Obszarów Wiejskich na lata 2007-2013
B46: Priorytet: | C46: Oś. 4 Leader
B47: Działanie: | C47: Działanie 4.1/413 Wdrażanie lokalnych strategii rozwoju dla operacji, które odpowiadają warunkom przyznania pomocy w ramach działania "Odnowa i rozwój wsi"
B48: Nazwa projektu: | C48: Wykonanie terenów rekreacyjnych na obszarze o szczególnym znaczeniu w miejscowości Radzyń Chełmiński
B50: Razem wydatki: | C50: Europejski Fundusz Rolny na rzecz Rozwoju Obszarów Wiejskich (EFRROW) | E50: =SUM(E51:E52) -> 107000 | F50: =SUM(F51:F52) -> 43000 | G50: 64000 | H50: 107000 | I50: 43000 | J50: 43000 | K50: 0 | L50: 0 | M50: 64000 | N50: 64000 | O50: 0 | P50: 0 | Q50: 0
B51: z tego: 2012 r. | D51: 926/92695/6058 | E51: 64000 | F51: - | G51: 64000 | H51: 64000 | I51: - | J51: - | K51: - | L51: - | M51: 64000 | N51: 64000 | O51: - | P51: - | Q51: -
D52: 926/92695/6059 | E52: 43000 | F52: 43000 | G52: - | H52: 43000 | I52: 43000 | J52: 43000 | K52: - | L52: - | M52: - | N52: - | O52: - | P52: - | Q52: -
A53: 4. | B53: Wydatki inwestycyjne razem: | C53: x | E53: =SUM(E58) -> 651787 | F53: =SUM(F58) -> 321787 | G53: 330000 | H53: 651787 | I53: 321787 | J53: 0 | K53: 0 | L53: 321787 | M53: 330000 | N53: 330000 | O53: 0 | P53: 0 | Q53: 0
A54: 4.1 | B54: Program: | C54: Program Rozwoju Obszarów Wiejskich na lata 2007-2013
B55: Priorytet: | C55: Oś. 3 Jakość życia na obszarach wiejskich i różnicowanie gospodarki wiejskiej
B56: Działanie: | C56: Działanie 313,322,323 "Odnowa i rozwój wsi"
B57: Nazwa projektu: | C57: Budowa parku rekreacji, sportu i wypoczynku przy ul. Przykop w Radzyniu Chełmińskim - zadanie I: budowa głównych ciągów komunikacyjnych, fontanny, zbiornika dekoracyjnego, pawilonu parkowego, linarium i modułu do gry w tenisa stołowego
B58: Razem wydatki: | C58: Europejski Fundusz Rolny na rzecz Rozwoju Obszarów Wiejskich (EFRROW) | E58: =SUM(E59:E60) -> 651787 | F58: =SUM(F59:F60) -> 321787 | G58: 330000 | H58: 651787 | I58: 321787 | J58: 0 | K58: 0 | L58: 321787 | M58: 330000 | N58: 330000 | O58: 0 | P58: 0 | Q58: 0
B59: z tego: 2012 r. | D59: 921/92195/6058 | E59: 330000 | F59: - | G59: 330000 | H59: 330000 | I59: - | J59: - | K59: - | L59: - | M59: 330000 | N59: 330000 | O59: - | P59: - | Q59: -
D60: 921/92195/6059 | E60: 321787 | F60: 321787 | G60: - | H60: 321787 | I60: 321787 | J60: - | K60: - | L60: 321787 | M60: - | N60: - | O60: - | P60: - | Q60: 0
A61: 5. | B61: Wydatki inwestycyjne razem: | C61: x | E61: =SUM(E66) -> 39717 | F61: 39717 | G61: 0 | H61: 0 | I61: 39717 | J61: 0 | K61: 0 | L61: 39717 | M61: 0 | N61: 0 | O61: 0 | P61: 0 | Q61: 0
A62: 5.1 | B62: Program: | C62: Regionalny Program Operacyjny Województwa Kujawsko - Pomorskiego na lata 2007-2013
B63: Priorytet: | C63: Priorytet IV Rozwój Infrastruktury Społeczeństwa Informacyjnego
B64: Działanie: | C64: Działanie 4.2.Rozwój usług i aplikacji dla ludności
B65: Nazwa projektu: | C65: Zakup sprzętu komputerowego w ramach projektu "Infostrada Kujaw i Pomorza"
B66: Razem wydatki: | C66: Europejski Fundusz Rozwoju Regionalnego | E66: =SUM(E67:E67) -> 39717 | F66: =SUM(F67:F67) -> 39717 | G66: =SUM(G67:G67) -> 0 | H66: 0 | I66: 39717 | J66: 0 | K66: 0 | L66: 39717 | M66: 0 | N66: 0 | O66: 0 | P66: 0 | Q66: 0
B67: z tego: 2012r. | D67: 720/72095/6069 | E67: 39717 | F67: 39717 | G67: - | H67: - | I67: 39717 | J67: - | K67: - | L67: 39717 | M67: - | N67: - | O67: - | P67: - | Q67: -
Q71: str. 3
A73: 1 | B73: 2 | C73: 3 | D73: 4 | E73: 5 | F73: 6 | G73: 7 | H73: 8 | I73: 9 | J73: 10 | K73: 11 | L73: 12 | M73: 13 | N73: 14 | O73: 15 | P73: 16 | Q73: 17
A74: 6. | B74: Wydatki inwestycyjne razem: | C74: x | E74: =SUM(E80) -> 220000 | F74: 89000 | G74: 131000 | H74: 220000 | I74: 89000 | J74: 89000 | K74: 0 | L74: 0 | M74: 131000 | N74: 131000 | O74: 0 | P74: 0 | Q74: 0
A75: 6.1 | B75: Program: | C75: Program Rozwoju Obszarów Wiejskich na lata 2007-2013
B76: Priorytet: | C76: Oś. 3 Jakość życia na obszarach wiejskich i różnicowanie gospodarki wiejskiej
B77: Działanie: | C77: Działanie 321 Podstawowe usługi dla gospodarki i ludności wiejskiej
B78: Nazwa projektu: | C78: Instalacja kolektorów słonecznych dla Zespołu Szkół w Radzyniu Chełmińskim
B80: Razem wydatki: | C80: Europejski Fundusz Rolny na rzecz Rozwoju Obszarów Wiejskich (EFRROW) | E80: =SUM(E81:E82) -> 220000 | F80: =SUM(F81:F82) -> 89000 | G80: 131000 | H80: 220000 | I80: 89000 | J80: 89000 | K80: 0 | L80: 0 | M80: 131000 | N80: 131000 | O80: =SUM(O81:O82) -> 0 | P80: 0 | Q80: 0
B81: z tego: 2012 r. | D81: 801/80101/6058 | E81: 131000 | F81: - | G81: 131000 | H81: 131000 | I81: - | J81: - | K81: - | L81: - | M81: 131000 | N81: 131000 | O81: - | P81: - | Q81: -
D82: 801/80101/6059 | E82: 89000 | F82: 89000 | G82: - | H82: 89000 | I82: 89000 | J82: 89000 | K82: - | L82: - | M82: - | N82: - | O82: - | P82: - | Q82: -
A83: 7. | B83: Wydatki bieżące razem: | C83: x | E83: =SUM(E88) -> 15214 | F83: =SUM(F88) -> 0 | G83: 15214 | H83: 15214 | I83: 0 | J83: 0 | K83: 0 | L83: 0 | M83: 15214 | N83: 0 | O83: 0 | P83: 0 | Q83: 15214
A84: 7.1 | B84: Program: | C84: "Uczenie się przez całe życie"
B85: Priorytet: | C85: Partnerskie Projekty Szkół
B86: Działanie: | C86: Wielostronne projekty w programie Comenius
B87: Nazwa projektu: | C87: Common Future European Culture
B88: Razem wydatki: | C88: Fundacja Rozwoju Systemu Edukacji | E88: =SUM(E89) -> 15214 | F88: =SUM(F89) -> 0 | G88: 15214 | H88: 15214 | I88: 0 | J88: 0 | K88: 0 | L88: 0 | M88: 15214 | N88: 0 | O88: 0 | P88: 0 | Q88: 15214
B89: z tego: 2012 r. | D89: 801/80101/4421,4431 | E89: 15214 | F89: - | G89: 15214 | H89: 15214 | I89: - | J89: - | K89: - | L89: - | M89: 15214 | N89: - | O89: - | P89: - | Q89: 15214
A90: OGÓŁEM: | C90: 2012 r. | D90: x | E90: =SUM(E16,E25,E44,E53,E61,E74,E83) -> 2623718 | F90: =SUM(F16,F25,F44,F53,F61,F74,F83) -> 1408504 | G90: 1215214 | H90: 2584001 | I90: 1408504 | J90: 1007000 | K90: 0 | L90: 401504 | M90: 1215214 | N90: 1200000 | O90: 0 | P90: 0 | Q90: 15214
A91: OGÓŁEM:
